fUST/lending_fUST_20250802
["ID","MTS","AMOUNT","RATE_DAILY","PERIOD"]
[376847728,1754137865254,-588.56,0.00026999,10]
[376847729,1754137865263,-588.56,0.00026999,10]
[376847730,1754137865272,-588.56,0.00026999,10]
[376847731,1754137865281,-588.56,0.00026999,10]
[376847732,1754137865290,-588.56,0.00026999,10]
[376847733,1754137865299,-588.56,0.00026999,10]
[376847734,1754137865308,-588.56,0.00026999,10]
[376847735,1754137865318,-460.0,0.00026999,10]
[376847736,1754137865327,-460.0,0.00026999,10]
[376847737,1754137865336,-460.0,0.00026999,10]
[376847738,1754137865346,-460.0,0.00026999,10]
[376847739,1754137865354,-460.0,0.00026999,10]
[376847740,1754137865363,-460.0,0.00026999,10]
[376847741,1754137865373,-460.0,0.00026999,10]
[376847742,1754137865382,-460.0,0.00026999,10]
[376847743,1754137865393,-460.0,0.00026999,10]
[376847744,1754137865402,-460.0,0.00026999,10]
[376847745,1754137865412,-460.0,0.00026999,10]
[376847746,1754137865421,-460.0,0.00026999,10]
[376847747,1754137865431,-626.45,0.00026999,10]
[376847748,1754137865441,-626.45,0.00026999,10]
[376847749,1754137865450,-626.45,0.00026999,10]
[376847750,1754137865459,-626.45,0.00026999,10]
[376847751,1754137865468,-626.45,0.00026999,10]
[376847752,1754137865478,-626.53,0.00026999,10]
[376847753,1754137865487,-460.0,0.00026999,10]
[376847754,1754137865497,-460.0,0.00026999,10]
[376847755,1754137865507,-460.0,0.00026999,10]
[376847756,1754137865516,-460.0,0.00026999,10]
[376847757,1754137865525,-460.0,0.00026999,10]
[376847758,1754137865535,-460.0,0.00026999,10]
[376847759,1754137865544,-460.0,0.00026999,10]
[376847760,1754137865554,-500.0,0.00026999,10]
[376847761,1754137865565,-500.0,0.00026999,10]
[376847762,1754137865574,-500.0,0.00026999,10]
[376847763,1754137865583,-500.0,0.00026999,10]
[376847764,1754137865593,-500.0,0.00026999,10]
[376847765,1754137865602,-500.0,0.00026999,10]
[376847766,1754137865611,-403.03418797,0.00026999,10]
[376847767,1754137865621,-575.23,0.00026999,10]
[376847768,1754137865630,-575.23,0.00026999,10]
[376847769,1754137865642,-575.23,0.00026999,10]
[376847770,1754137865651,-575.23,0.00026999,10]
[376847771,1754137865660,-575.23,0.00026999,10]
[376847772,1754137865670,-575.23,0.00026999,10]
[376847773,1754137865680,-575.23,0.00026999,10]
[376847774,1754137865689,-575.23,0.00026999,10]
[376847775,1754137865699,-575.23,0.00026999,10]
[376847776,1754137865708,-40231.06135694,0.00027,2]
[376847777,1754137865717,-151902.42,0.00027,2]
[376847778,1754137865727,-185566.77,0.00027,2]
[376847779,1754137865736,-556.76,0.00027,7]
[376847780,1754137865745,-276.4,0.00027,2]
[376847781,1754137865755,-8696.47060725,0.00027,2]
[376847782,1754137865764,-151.0,0.00027,7]
[376847783,1754137865774,-3381.15647821,0.00027,2]
[376847784,1754137865783,-151.0,0.00027,7]
[376847785,1754137865792,-151.0,0.00027,7]
[376847786,1754137865802,-151.0,0.00027,7]
[376847787,1754137865811,-297.12271,0.00027,7]
[376847788,1754137865822,-151.0,0.00027,7]
[376847789,1754137865831,-151.0,0.00027,7]
[376847790,1754137865840,-151.0,0.00027,7]
[376847791,1754137865848,-151.0,0.00027,7]
[376847792,1754137865858,-154.931763,0.00027,7]
[376847793,1754137865867,-151.292461,0.00027,7]
[376847794,1754137865876,-151.797321,0.00027,7]
[376847795,1754137865885,-230.338321,0.00027,7]
[376847796,1754137865897,-151.0,0.00027,7]
[376847797,1754137865906,-1375.63489,0.00027,10]
[376847798,1754137865916,-151.0,0.00027,7]
[376847799,1754137865925,-398.57269121,0.00027,2]
[376847800,1754137865935,-151.0,0.00027,7]
[376847801,1754137865944,-312.16666667,0.00027,3]
[376847802,1754137865953,-258.133948,0.00027,7]
[376847803,1754137865962,-151.0,0.00027,7]
[376847804,1754137865972,-258.133948,0.00027,7]
[376847805,1754137865981,-151.0,0.00027,7]
[376847806,1754137865990,-151.0,0.00027,7]
[376847807,1754137865999,-151.0,0.00027,7]
[376847808,1754137866008,-151.0,0.00027,7]
[376847809,1754137866018,-151.730254,0.00027,7]
[376847810,1754137866027,-151.0,0.00027,7]
[376847811,1754137866036,-356937.41,0.00027,2]
[376847812,1754137866045,-589314.23,0.00027,2]
[376847813,1754137866054,-151.0,0.00027,7]
[376847814,1754137866064,-151.0,0.00027,7]
[376847815,1754137866073,-151.0,0.00027,7]
[376847816,1754137866082,-151.0,0.00027,7]
[376847817,1754137866092,-151.0,0.00027,7]
[376847818,1754137866101,-151.0,0.00027,7]
[376847819,1754137866120,-151.0,0.00027,7]
[376847820,1754137866130,-151.0,0.00027,7]
[376847821,1754137866141,-151.0,0.00027,7]
[376847822,1754137866150,-151.0,0.00027,7]
[376847823,1754137866160,-151.0,0.00027,7]
[376847824,1754137866169,-215.0795835,0.00027,7]
[376847825,1754137866179,-151.0,0.00027,7]
[376847826,1754137866188,-151.0,0.00027,7]
[376847827,1754137866198,-151.0,0.00027,7]
[376847828,1754137866208,-151.0,0.00027,7]
[376847829,1754137866217,-151.0,0.00027,7]
[376847830,1754137866227,-262.014518,0.00027,7]
[376847831,1754137866238,-262.014518,0.00027,7]
[376847832,1754137866258,-262.014518,0.00027,7]
[376847833,1754137866276,-262.014518,0.00027,7]
[376847834,1754137866285,-262.014518,0.00027,7]
[376847835,1754137866294,-262.014518,0.00027,7]
[376847836,1754137866304,-154.062904,0.00027,7]
[376847837,1754137866320,-275.826422,0.00027,7]
[376847838,1754137866329,-151.0,0.00027,7]
[376847839,1754137866340,-151.0,0.00027,7]
[376847840,1754137866350,-151.0,0.00027,7]
[376847841,1754137866359,-1594.29076483,0.0002709,2]
[376847842,1754137866368,-590.17,0.00027099,10]
[376847843,1754137866378,-460.0,0.00027099,10]
[376847844,1754137866388,-588.56,0.00027099,10]
[376847845,1754137866398,-457.71,0.00027099,10]
[376847846,1754137866408,-575.23,0.00027099,10]
[376847847,1754137866417,-2000.0,0.000271,2]
[376847848,1754137866426,-156.0,0.000271,2]
[376847849,1754137866436,-240.34582,0.000271,7]
[376847850,1754137866445,-538.0,0.000271,2]
[376847851,1754137866454,-538.0,0.000271,2]
[376847852,1754137866464,-538.0,0.000271,2]
[376847853,1754137866473,-538.0,0.000271,2]
[376847854,1754137866482,-538.0,0.000271,2]
[376847855,1754137866491,-538.0,0.000271,2]
[376847856,1754137866501,-538.0,0.000271,2]
[376847857,1754137866510,-538.0,0.000271,2]
[376847858,1754137866520,-538.0,0.000271,2]
[376847859,1754137866529,-538.0,0.000271,2]
[376847860,1754137866672,-538.0,0.000271,2]
[376847861,1754137866682,-538.0,0.000271,2]
[376847862,1754137866691,-623.10562031,0.000271,2]
[376847863,1754137866701,-538.0,0.000271,2]
[376847864,1754137866710,-538.0,0.000271,2]
[376847865,1754137866720,-538.0,0.000271,2]
[376847866,1754137866729,-538.0,0.000271,2]
[376847867,1754137866738,-538.0,0.000271,2]
[376847868,1754137866747,-538.0,0.000271,2]
[376847869,1754137866757,-311.55281016,0.000271,2]
[376847870,1754137866767,-538.0,0.000271,2]
[376847871,1754137866785,-538.0,0.000271,2]
[376847872,1754137866794,-538.0,0.000271,2]
[376847873,1754137866804,-155.77640508,0.000271,2]
[376847874,1754137866812,-538.0,0.000271,2]
[376847875,1754137866822,-346.88820254,0.000271,2]
[376847876,1754137866831,-442.44410127,0.000271,2]
[376847877,1754137866840,-221.22205063,0.000271,2]
[376847878,1754137866849,-221.22205063,0.000271,2]
[376847879,1754137866859,-155.349077,0.00027122,3]
[376847880,1754137866868,-2809.0684072,0.00027153,2]
[376847881,1754137866877,-2500.0,0.00027164,2]
[376847882,1754137866888,-560.0,0.00027192,2]
[376847883,1754137866897,-1110.16,0.000272,2]
[376847884,1754137866906,-155.349077,0.00027231,10]
[376847885,1754137866917,-1512.42914269,0.0002726,18]
[376847886,1754137866927,-422.07,0.00027278,2]
[376847887,1754137866936,-590.17,0.00027303,10]
[376847888,1754137866945,-460.0,0.00027303,10]
[376847889,1754137866955,-588.56,0.00027303,10]
[376847890,1754137866965,-575.23,0.00027303,10]
[376847891,1754137866976,-155.0,0.00027313,2]
[376847892,1754137866985,-547.77433365,0.0002732,10]
[376847893,1754137866994,-202.29113895,0.00027337,2]
[376847894,1754137867003,-155.349077,0.00027358,10]
[376847895,1754137867013,-155.349077,0.00027374,7]
[376847896,1754137867023,-153.09709547,0.00027397,2]
[376847897,1754137867032,-1000.0,0.00027397,7]
[376847898,1754137867043,-1000.0,0.00027397,7]
[376847899,1754137867054,-1000.0,0.00027397,7]
[376847900,1754137867065,-1000.0,0.00027397,7]
[376847901,1754137867075,-1000.0,0.00027397,7]
[376847902,1754137867084,-1000.0,0.00027397,7]
[376847903,1754137867093,-282.07049292,0.00027397,2]
[376847904,1754137867102,-1000.0,0.00027397,7]
[376847905,1754137867111,-1000.0,0.00027397,7]
[376847906,1754137867120,-500.0,0.00027397,5]
[376847907,1754137867129,-500.0,0.00027398,2]
[376847908,1754137867138,-151.0,0.00027398,2]
[376847909,1754137867148,-620.0,0.00027398,2]
[376847910,1754137867158,-151.0,0.00027398,2]
[376847911,1754137867167,-151.0,0.00027398,2]
[376847912,1754137867177,-151.0,0.00027398,2]
[376847913,1754137867186,-151.0,0.00027398,2]
[376847914,1754137867196,-500.0,0.00027398,2]
[376847915,1754137867205,-227.04716193,0.00027398,2]
[376847916,1754137867215,-151.0,0.00027398,2]
[376847917,1754137867224,-151.0,0.00027398,2]
[376847918,1754137867234,-151.0,0.00027398,2]
[376847919,1754137867244,-151.0,0.00027398,2]
[376847920,1754137867253,-312.16666667,0.000274,7]
[376847921,1754137867263,-1000.0,0.000274,2]
[376847922,1754137867272,-200.49063813,0.000274,10]
[376847923,1754137867282,-151.0,0.00027401,7]
[376847924,1754137867291,-151.885658,0.00027401,7]
[376847925,1754137867300,-151.0,0.00027401,7]
[376847926,1754137867310,-151.0,0.00027401,7]
[376847927,1754137867319,-151.0,0.00027401,7]
[376847928,1754137867328,-151.0,0.00027401,7]
[376847929,1754137867338,-152.273179,0.00027401,7]
[376847930,1754137867349,-155.349077,0.00027403,6]
[376847931,1754137867357,-590.17,0.00027403,10]
[376847932,1754137867368,-590.17,0.00027403,10]
[376847933,1754137867377,-590.17,0.00027403,10]
[376847934,1754137867386,-590.17,0.00027403,10]
[376847935,1754137867396,-590.17,0.00027403,10]
[376847936,1754137867406,-590.17,0.00027403,10]
[376847937,1754137867415,-590.17,0.00027403,10]
[376847938,1754137867425,-590.17,0.00027403,10]
[376847939,1754137867434,-590.17,0.00027403,10]
[376847940,1754137867443,-590.17,0.00027403,10]
[376847941,1754137867452,-590.17,0.00027403,10]
[376847942,1754137867462,-590.17,0.00027403,10]
[376847943,1754137867471,-590.36,0.00027403,10]
[376847944,1754137867482,-460.0,0.00027403,10]
[376847945,1754137867491,-460.0,0.00027403,10]
[376847946,1754137867500,-460.0,0.00027403,10]
[376847947,1754137867510,-460.0,0.00027403,10]
[376847948,1754137867519,-460.0,0.00027403,10]
[376847949,1754137867528,-460.0,0.00027403,10]
[376847950,1754137867537,-460.0,0.00027403,10]
[376847951,1754137867546,-460.0,0.00027403,10]
[376847952,1754137867555,-460.0,0.00027403,10]
[376847953,1754137867564,-460.0,0.00027403,10]
[376847954,1754137867575,-460.0,0.00027403,10]
[376847955,1754137867584,-520.38,0.00027403,10]
[376847956,1754137867593,-588.56,0.00027403,10]
[376847957,1754137867602,-588.56,0.00027403,10]
[376847958,1754137867611,-588.56,0.00027403,10]
[376847959,1754137867620,-588.56,0.00027403,10]
[376847960,1754137867629,-588.56,0.00027403,10]
[376847961,1754137867639,-588.56,0.00027403,10]
[376847962,1754137867648,-588.56,0.00027403,10]
[376847963,1754137867657,-588.56,0.00027403,10]
[376847964,1754137867667,-588.56,0.00027403,10]
[376847965,1754137867677,-588.56,0.00027403,10]
[376847966,1754137867685,-588.56,0.00027403,10]
[376847967,1754137867695,-588.56,0.00027403,10]
[376847968,1754137867704,-588.78,0.00027403,10]
[376847969,1754137867713,-575.23,0.00027403,10]
[376847970,1754137867723,-575.23,0.00027403,10]
[376847971,1754137867732,-575.23,0.00027403,10]
[376847972,1754137867741,-575.23,0.00027403,10]
[376847973,1754137867750,-575.23,0.00027403,10]
[376847974,1754137867759,-575.23,0.00027403,10]
[376847975,1754137867768,-575.23,0.00027403,10]
[376847976,1754137867778,-575.23,0.00027403,10]
[376847977,1754137867787,-575.23,0.00027403,10]
[376847978,1754137867797,-575.23,0.00027403,10]
[376847979,1754137867806,-575.23,0.00027403,10]
[376847980,1754137867815,-575.23,0.00027403,10]
[376847981,1754137867824,-575.25,0.00027403,10]
[376847982,1754137867834,-12646.87439643,0.00027404,7]
[376847983,1754137867843,-202.68240733,0.00027406,3]
[376847984,1754137867853,-325.0,0.00027406,3]
[376847985,1754137867862,-1071.43,0.0002741,30]
[376847986,1754137867871,-500.0,0.0002741,5]
[376847987,1754137867880,-460.0,0.0002741,20]
[376847988,1754137867889,-460.0,0.0002741,20]
[376847989,1754137867898,-460.0,0.0002741,20]
[376847990,1754137867907,-460.0,0.0002741,20]
[376847991,1754137867916,-460.0,0.0002741,20]
[376847992,1754137867926,-200.0,0.0002741,15]
[376847993,1754137867935,-200.0,0.0002741,15]
[376847994,1754137867944,-200.0,0.0002741,15]
[376847995,1754137867954,-200.0,0.0002741,15]
[376847996,1754137867963,-200.0,0.0002741,15]
[376847997,1754137867973,-200.0,0.0002741,15]
[376847998,1754137867982,-200.0,0.0002741,15]
[376847999,1754137867991,-1000.0,0.00027421,5]
[376848000,1754137868001,-1000.0,0.00027421,5]
[376848001,1754137868010,-250.0,0.00027421,5]
[376848002,1754137868020,-1006.90459602,0.00027421,5]
[376848003,1754137868029,-200.0,0.00027426,120]
[376848004,1754137868038,-151.0,0.00027427,7]
[376848005,1754137868047,-151.0,0.00027427,7]
[376848006,1754137868055,-151.0,0.00027427,7]
[376848007,1754137868064,-151.0,0.00027427,7]
[376848008,1754137868074,-221.931224,0.00027427,7]
[376848009,1754137868083,-151.0,0.00027427,7]
[376848010,1754137868092,-151.0,0.00027427,7]
[376848011,1754137868101,-151.0,0.00027427,7]
[376848012,1754137868110,-151.0,0.00027427,7]
[376848013,1754137868118,-151.0,0.00027427,7]
[376848014,1754137868127,-151.0,0.00027427,7]
[376848015,1754137868136,-151.0,0.00027427,7]
[376848016,1754137868146,-151.0,0.00027427,7]
[376848017,1754137868155,-151.0,0.00027427,7]
[376848018,1754137868164,-151.0,0.00027427,7]
[376848019,1754137868173,-151.0,0.00027427,7]
[376848020,1754137868183,-180.838031,0.00027427,7]
[376848021,1754137868192,-151.0,0.00027427,7]
[376848022,1754137868201,-151.0,0.00027427,7]
[376848023,1754137868209,-151.0,0.00027427,7]
[376848024,1754137868218,-151.0,0.00027427,7]
[376848025,1754137868227,-151.0,0.00027427,7]
[376848026,1754137868236,-151.0,0.00027427,7]
[376848027,1754137868245,-151.0,0.00027427,7]
[376848028,1754137868253,-156.135592,0.00027427,7]
[376848029,1754137868263,-151.0,0.00027427,7]
[376848030,1754137868272,-151.0,0.00027427,7]
[376848031,1754137868281,-151.0,0.00027427,7]
[376848032,1754137868290,-151.0,0.00027427,7]
[376848033,1754137868298,-258.133948,0.00027427,7]
[376848034,1754137868307,-258.133948,0.00027427,7]
[376848035,1754137868316,-258.133948,0.00027427,7]
[376848036,1754137868325,-258.133948,0.00027427,7]
[376848037,1754137868334,-258.133948,0.00027427,7]
[376848038,1754137868343,-258.133948,0.00027427,7]
[376848039,1754137868352,-258.133948,0.00027427,7]
[376848040,1754137868361,-258.133948,0.00027427,7]
[376848041,1754137868370,-258.133948,0.00027427,7]
[376848042,1754137868383,-258.133948,0.00027427,7]
[376848043,1754137868393,-258.133948,0.00027427,7]
[376848044,1754137868402,-258.133948,0.00027427,7]
[376848045,1754137868411,-258.133948,0.00027427,7]
[376848046,1754137868420,-258.133948,0.00027427,7]
[376848047,1754137868429,-258.133948,0.00027427,7]
[376848048,1754137868438,-258.133946,0.00027427,7]
[376848049,1754137868448,-200.0,0.00027433,120]
[376848050,1754137868457,-1000.0,0.00027436,30]
[376848051,1754137868466,-288.71862819,0.00027436,120]
[376848052,1754137868478,-151.0,0.00027445,7]
[376848053,1754137868487,-151.0,0.00027445,7]
[376848054,1754137868496,-151.0,0.00027445,7]
[376848055,1754137868505,-151.0,0.00027445,7]
[376848056,1754137868514,-151.0,0.00027445,7]
[376848057,1754137868524,-179.101539,0.00027445,7]
[376848058,1754137868532,-151.0,0.00027445,7]
[376848059,1754137868542,-151.0,0.00027445,7]
[376848060,1754137868551,-151.0,0.00027445,7]
[376848061,1754137868560,-151.0,0.00027445,7]
[376848062,1754137868569,-151.0,0.00027445,7]
[376848063,1754137868578,-151.0,0.00027445,7]
[376848064,1754137868587,-151.0,0.00027445,7]
[376848065,1754137868596,-151.0,0.00027445,7]
[376848066,1754137868605,-151.0,0.00027445,7]
[376848067,1754137868615,-151.0,0.00027445,7]
[376848068,1754137868624,-151.0,0.00027445,7]
[376848069,1754137868633,-151.0,0.00027445,7]
[376848070,1754137868643,-151.0,0.00027445,7]
[376848071,1754137868652,-151.0,0.00027445,7]
[376848072,1754137868662,-171.726919,0.00027445,7]
[376848073,1754137868671,-151.0,0.00027445,7]
[376848074,1754137868680,-151.0,0.00027445,7]
[376848075,1754137868690,-151.0,0.00027445,7]
[376848076,1754137868699,-151.0,0.00027445,7]
[376848077,1754137868709,-151.0,0.00027445,7]
[376848078,1754137868718,-151.0,0.00027445,7]
[376848079,1754137868727,-151.0,0.00027445,7]
[376848080,1754137868827,-151.0,0.00027445,7]
[376848081,1754137868843,-151.0,0.00027445,7]
[376848082,1754137868853,-151.0,0.00027445,7]
[376848083,1754137868865,-151.0,0.00027445,7]
[376848084,1754137868874,-151.0,0.00027445,7]
[376848085,1754137868884,-151.0,0.00027445,7]
[376848086,1754137868894,-151.0,0.00027445,7]
[376848087,1754137868904,-151.0,0.00027445,7]
[376848088,1754137868914,-151.0,0.00027445,7]
[376848089,1754137868924,-151.0,0.00027445,7]
[376848090,1754137868933,-151.0,0.00027445,7]
[376848091,1754137868944,-185.499177,0.00027445,7]
[376848092,1754137868954,-151.0,0.00027445,7]
[376848093,1754137868964,-151.0,0.00027445,7]
[376848094,1754137868974,-151.0,0.00027445,7]
[376848095,1754137868983,-151.0,0.00027445,7]
[376848096,1754137868992,-151.0,0.00027445,7]
[376848097,1754137869001,-151.0,0.00027445,7]
[376848098,1754137869011,-151.0,0.00027445,7]
[376848099,1754137869020,-151.0,0.00027445,7]
[376848100,1754137869029,-238.01776,0.00027445,7]
[376848101,1754137869039,-151.0,0.00027445,7]
[376848102,1754137869048,-151.0,0.00027445,7]
[376848103,1754137869058,-151.0,0.00027445,7]
[376848104,1754137869068,-151.0,0.00027445,7]
[376848105,1754137869077,-151.0,0.00027445,7]
[376848106,1754137869087,-151.0,0.00027445,7]
[376848107,1754137869096,-151.0,0.00027445,7]
[376848108,1754137869106,-151.0,0.00027445,7]
[376848109,1754137869118,-151.0,0.00027445,7]
[376848110,1754137869128,-151.0,0.00027445,7]
[376848111,1754137869137,-151.0,0.00027445,7]
[376848112,1754137869147,-151.0,0.00027445,7]
[376848113,1754137869157,-151.0,0.00027445,7]
[376848114,1754137869166,-151.0,0.00027445,7]
[376848115,1754137869175,-151.0,0.00027445,7]
[376848116,1754137869184,-295.138449,0.00027445,7]
[376848117,1754137869193,-155.349077,0.00027448,20]
[376848118,1754137869202,-200.0,0.00027451,120]
[376848119,1754137869211,-216.0,0.00027454,2]
[376848120,1754137869220,-200.0,0.00027466,120]
[376848121,1754137869230,-262.014518,0.00027467,7]
[376848122,1754137869239,-262.014518,0.00027467,7]
[376848123,1754137869249,-262.014518,0.00027467,7]
[376848124,1754137869258,-262.014518,0.00027467,7]
[376848125,1754137869268,-262.014518,0.00027467,7]
[376848126,1754137869278,-262.014518,0.00027467,7]
[376848127,1754137869287,-262.014518,0.00027467,7]
[376848128,1754137869296,-262.014518,0.00027467,7]
[376848129,1754137869306,-262.014518,0.00027467,7]
[376848130,1754137869315,-262.014518,0.00027467,7]
[376848131,1754137869324,-151.0,0.00027467,7]
[376848132,1754137869335,-151.0,0.00027467,7]
[376848133,1754137869344,-227189.53517935,0.00027467,20]
[376848134,1754137869353,-14497.67735523,0.00027467,20]
[376848135,1754137869742,-460.0,0.00026849,10]
[376848136,1754137869751,-23.4265662,0.00026849,10]
[376848137,1754137869762,-436.5734338,0.00026849,10]
[376848138,1754137869771,-37627.9819693,0.00027467,20]
[376848139,1754137869977,-286.6670854,0.0002366,2]
[376848140,1754137870105,44.23617121,0.00023423,2]
[376848141,1754137870126,225.08326604,0.00023423,2]
[376848142,1754137870226,-3375.35056344,0.00023423,2]
[376848143,1754137870254,-1355.32999931,0.00023423,2]
[376848144,1754137870265,-24613.3329146,0.0002366,2]
[376848145,1754137870275,-151.0,0.00024817,2]
[376848146,1754137870284,-151.0,0.00024817,2]
[376848147,1754137870293,-497.81,0.00026849,10]
[376848148,1754137870302,-460.0,0.00026849,10]
[376848149,1754137870312,-460.0,0.00026849,10]
[376848150,1754137870320,-460.0,0.00026849,10]
[376848151,1754137870330,-460.0,0.00026849,10]
[376848152,1754137870339,-497.81,0.00026849,10]
[376848153,1754137870348,-460.0,0.00026849,10]
[376848154,1754137870357,-460.0,0.00026849,10]
[376848155,1754137870366,-497.81,0.00026849,10]
[376848156,1754137870375,-460.0,0.00026849,10]
[376848157,1754137870384,-460.0,0.00026849,10]
[376848158,1754137870394,-497.81,0.00026849,10]
[376848159,1754137870404,-460.0,0.00026849,10]
[376848160,1754137870413,-336.18,0.00026849,10]
[376848161,1754137870422,-460.0,0.00026849,10]
[376848162,1754137870431,-497.81,0.00026849,10]
[376848163,1754137870440,-460.0,0.00026849,10]
[376848164,1754137870450,-497.81,0.00026849,10]
[376848165,1754137870459,-460.0,0.00026849,10]
[376848166,1754137870468,-497.81,0.00026849,10]
[376848167,1754137870477,-482.95334249,0.00026849,10]
[376848168,1754137870486,-497.81,0.00026849,10]
[376848169,1754137870495,-460.0,0.00026849,10]
[376848170,1754137870504,-497.81,0.00026849,10]
[376848171,1754137870513,-460.0,0.00026849,10]
[376848172,1754137870522,-497.81,0.00026849,10]
[376848173,1754137870530,-460.0,0.00026849,10]
[376848174,1754137870539,-460.0,0.00026849,10]
[376848175,1754137870548,-497.81,0.00026849,10]
[376848176,1754137870557,-460.0,0.00026849,10]
[376848177,1754137870566,-497.81,0.00026849,10]
[376848178,1754137870574,-460.0,0.00026849,10]
[376848179,1754137870583,-498.03,0.00026849,10]
[376848180,1754137870592,-460.0,0.00026849,10]
[376848181,1754137870601,-460.0,0.00026849,10]
[376848182,1754137870610,-460.0,0.00026849,10]
[376848183,1754137870619,-460.0,0.00026849,10]
[376848184,1754137870628,-460.0,0.00026849,10]
[376848185,1754137870637,-460.0,0.00026849,10]
[376848186,1754137870646,-460.0,0.00026849,10]
[376848187,1754137870655,-460.0,0.00026849,10]
[376848188,1754137870664,-151.0,0.00027398,2]
[376848189,1754137870673,-500.0,0.0002741,5]
[376848190,1754137870682,-613477.7458851,0.00027467,20]
[376848191,1754137870765,-460.0,0.00026849,10]
[376848192,1754137870775,-460.0,0.00026849,10]
[376848193,1754137870785,-151.0,0.00026849,7]
[376848194,1754137870794,-460.0,0.00026849,10]
[376848195,1754137870803,-151.0,0.00026849,7]
[376848196,1754137870811,-460.0,0.00026849,10]
[376848197,1754137870822,-14.44079756,0.00026849,10]
[376848198,1754137870834,-445.55920244,0.00026849,10]
[376848199,1754137870843,-425.05311096,0.00026849,10]
[376848200,1754137870860,-34.94688904,0.00026849,10]
[376848201,1754137870870,-204.844558,0.00026849,7]
[376848202,1754137870879,-183.44119828,0.00026849,10]
[376848203,1754137870971,-36.76735468,0.00026849,7]
[376848204,1754137871136,-844.9556452,0.00023949,2]
[376848205,1754137871147,-4155.0443548,0.00023949,2]
[376848206,1754137871157,-114.23264532,0.00026849,7]
[376848207,1754137871166,-460.0,0.00026849,10]
[376848208,1754137871175,-460.0,0.00026849,10]
[376848209,1754137871184,-540.2,0.00026849,10]
[376848210,1754137871193,-151.0,0.00026849,7]
[376848211,1754137871204,-460.0,0.00026849,10]
[376848212,1754137871213,-460.0,0.00026849,10]
[376848213,1754137871222,-460.0,0.00026849,10]
[376848214,1754137871231,-460.0,0.00026849,10]
[376848215,1754137871241,-460.0,0.00026849,10]
[376848216,1754137871251,-460.0,0.00026849,10]
[376848217,1754137871260,-460.0,0.00026849,10]
[376848218,1754137871269,-409.95119988,0.00026849,10]
[376848219,1754137871281,-117.07345106,0.00026849,10]
[376848220,1754137871290,-460.0,0.00026849,10]
[376848221,1754137871299,-460.0,0.00026849,10]
[376848222,1754137871309,-460.0,0.00026849,10]
[376848223,1754137871318,-460.0,0.00026849,10]
[376848224,1754137871328,-460.0,0.00026849,10]
[376848225,1754137871338,-460.0,0.00026849,10]
[376848226,1754137871347,-151.0,0.00026849,7]
[376848227,1754137871357,-151.0,0.00026849,7]